bitfinex-derivatives/quotes_BTCF0:USTF0_20250509
["timestamp","ask_amount","ask_price","bid_price","bid_amount"]
[1746827855251,0.19933,103020.0,103010.0,3.23818535]
[1746827863557,0.19933,103020.0,103010.0,2.51658535]
[1746827863758,0.19933,103020.0,103010.0,3.23818535]
[1746827864452,0.19933,103020.0,103010.0,2.51658717]
[1746827864658,0.19933,103020.0,103010.0,3.23818717]
[1746827870856,0.23143,103020.0,103010.0,3.23818717]
[1746827871058,0.23143,103020.0,103010.0,3.38596096]
[1746827871662,0.23143,103020.0,103010.0,3.38596981]
[1746827871861,0.26213,103020.0,103010.0,3.38596981]
[1746827872265,0.26213,103020.0,103010.0,3.38596982]
[1746827873565,0.26213,103020.0,103010.0,3.38596981]
[1746827874962,0.26213,103020.0,103010.0,3.38596992]
[1746827881970,0.26213,103020.0,103010.0,3.38596751]
[1746827885672,0.26213,103020.0,103010.0,3.38596841]
[1746827886474,0.26213,103020.0,103010.0,3.38596834]
[1746827887374,0.26213,103020.0,103010.0,3.38596825]
[1746827888075,0.10213,103020.0,103010.0,3.54596825]
[1746827889173,0.10213,103020.0,103010.0,3.54596818]
[1746827891670,0.10213,103020.0,103010.0,3.54596613]
[1746827892277,0.26213,103020.0,103010.0,3.38596613]
[1746827892471,0.26213,103020.0,103010.0,2.66436613]
[1746827892672,0.26213,103020.0,103010.0,3.38596613]
[1746827895575,0.26213,103020.0,103010.0,3.23819234]
[1746827896479,0.26213,103020.0,103010.0,3.23819349]
[1746827897074,0.26213,103020.0,103010.0,3.12749697]
[1746827897280,0.48213,103020.0,103010.0,2.84749697]
[1746827897578,0.29293,103020.0,103010.0,2.84749697]
[1746827898179,0.29293,103020.0,103010.0,2.84749699]
[1746827899477,0.29293,103020.0,103010.0,3.23819351]
[1746827900881,0.29293,103020.0,103010.0,3.12749699]
[1746827901376,0.29293,103020.0,103010.0,3.02749699]
[1746827901982,0.29293,103020.0,103010.0,3.02749491]
[1746827903579,0.29293,103020.0,103010.0,3.13819143]
[1746827903980,0.29293,103020.0,103010.0,2.41659143]
[1746827904175,0.29293,103020.0,103010.0,3.13819143]
[1746827904575,0.29293,103020.0,103010.0,3.02749491]
[1746827905183,0.29293,103020.0,103010.0,3.13819143]
[1746827905484,0.29293,103020.0,103010.0,2.41659143]
[1746827905783,0.29293,103020.0,103010.0,3.13819143]
[1746827906277,0.29293,103020.0,103010.0,3.28596522]
[1746827906478,0.29293,103020.0,103010.0,3.06457218]
[1746827906679,0.29293,103020.0,103010.0,3.28596522]
[1746827907785,0.30019,103020.0,103010.0,3.28596522]
[1746827908986,0.30019,103020.0,103010.0,3.28596384]
[1746827909689,0.30019,103020.0,103010.0,3.38596384]
[1746827912687,0.30019,103020.0,103010.0,3.38586458]
[1746827914488,0.30019,103020.0,103010.0,3.38586044]
[1746827917790,0.26939,103020.0,103010.0,3.38586044]
[1746827920794,0.26939,103020.0,103010.0,2.8259074]
[1746827921091,0.58939,103020.0,103010.0,2.86100392]
[1746827923497,0.58939,103020.0,103010.0,2.13939564]
[1746827923695,0.58939,103020.0,103010.0,2.86099564]
[1746827924094,0.58939,103020.0,103010.0,2.71322185]
[1746827927691,0.70008652,103020.0,103010.0,1.20308533]
[1746827927893,0.79715852,103020.0,103010.0,1.04250473]
[1746827928099,0.83025852,103020.0,103010.0,1.04250473]
[1746827928898,0.719562,103020.0,103010.0,1.04250473]
[1746827930914,0.719562,103020.0,103010.0,0.68170473]
[1746827932610,0.719562,103020.0,103010.0,0.71230473]
[1746827934315,0.719562,103020.0,103010.0,0.71217845]
[1746827936310,0.369562,103020.0,103010.0,0.87217845]
[1746827936516,0.133977,103020.0,103010.0,1.54213149]
[1746827936714,0.15422273,103030.0,103020.0,0.1941273]
[1746827936916,0.12332273,103030.0,103020.0,1.35503895]
[1746827937114,0.12332273,103030.0,103020.0,1.51503895]
[1746827937311,0.36436402,103040.0,103030.0,0.1941085]
[1746827937510,0.69436402,103040.0,103030.0,0.90638363]
[1746827937913,0.69436402,103040.0,103030.0,1.00344744]
[1746827938118,0.69436402,103040.0,103030.0,1.00344395]
[1746827938318,0.69436402,103040.0,103030.0,1.16344395]
[1746827939319,0.69736402,103040.0,103030.0,1.16344395]
[1746827939821,0.70136402,103040.0,103030.0,1.00344395]
[1746827940320,0.86136402,103040.0,103030.0,0.84344395]
[1746827941022,0.86136402,103040.0,103030.0,0.73274743]
[1746827941222,0.86136402,103040.0,103030.0,0.73268386]
[1746827941522,0.86136402,103040.0,103030.0,0.84338038]
[1746827942023,1.05545362,103040.0,103030.0,0.69988386]
[1746827942223,1.37390266,103040.0,103030.0,0.11177536]
[1746827942525,0.1941085,103030.0,103020.0,0.4899986]
[1746827942817,0.72590502,103030.0,103020.0,0.50470923]
[1746827943022,0.82296902,103030.0,103020.0,0.60176372]
[1746827943218,0.98296902,103030.0,103020.0,0.55323242]
[1746827943426,0.98296902,103030.0,103020.0,0.52153242]
[1746827943726,0.98496902,103030.0,103020.0,0.52153242]
[1746827943916,0.98596902,103030.0,103020.0,0.52153242]
[1746827944520,0.98596902,103030.0,103020.0,0.40293248]
[1746827945023,0.98596902,103030.0,103020.0,0.35440398]
[1746827945228,1.34676902,103030.0,103020.0,0.35440398]
[1746827946527,0.88890502,103030.0,103020.0,0.35440398]
[1746827946727,1.24970502,103030.0,103020.0,0.38600398]
[1746827948120,1.24970502,103030.0,103020.0,0.3860053]
[1746827950932,1.24970502,103030.0,103020.0,0.04631211]
[1746827951229,1.24970502,103030.0,103020.0,0.0316]
[1746827951630,1.34676902,103030.0,103020.0,0.0316]
[1746827952729,1.24970502,103030.0,103020.0,0.0316]
[1746827952929,1.34676902,103030.0,103020.0,0.0316]
[1746827953932,1.47009175,103030.0,103020.0,0.0316]
[1746827958931,1.47009175,103030.0,103020.0,0.2257273]
[1746827959134,1.47009175,103030.0,103020.0,0.0316]
[1746827959332,1.47009175,103030.0,103020.0,0.2257273]
[1746827960526,1.10929175,103030.0,103020.0,0.2257273]
[1746827960728,1.47009175,103030.0,103020.0,0.2257273]
[1746827964827,1.10929175,103030.0,103020.0,0.2257273]
[1746827965035,1.47009175,103030.0,103020.0,0.2257273]
[1746827965636,1.10929175,103030.0,103020.0,0.2257273]
[1746827965838,1.14029175,103030.0,103020.0,0.2257273]
[1746827966536,1.50109175,103030.0,103020.0,0.2257273]
[1746827967539,1.40402775,103030.0,103020.0,0.2257273]
[1746827969640,1.40402775,103030.0,103020.0,0.2875273]
[1746827970042,1.40800775,103030.0,103020.0,0.2875273]
[1746827971444,1.04720775,103030.0,103020.0,0.30225215]
[1746827974744,0.93651123,103030.0,103020.0,0.30225215]
[1746827975042,1.04720775,103030.0,103020.0,0.30225215]
[1746827979947,1.40800775,103030.0,103020.0,0.30225215]
[1746827981352,1.04720775,103030.0,103020.0,0.30225215]
[1746827982452,1.40800775,103030.0,103020.0,0.30225215]
[1746827983444,1.04720775,103030.0,103020.0,0.30225215]
[1746827983650,1.40800775,103030.0,103020.0,0.30225215]
[1746827983847,1.55574904,103030.0,103020.0,0.30225215]
[1746827984549,1.55574904,103030.0,103020.0,0.2875273]
[1746827984852,1.55574904,103030.0,103020.0,0.30226958]
[1746827986456,1.44505252,103030.0,103020.0,0.30227015]
[1746827986648,0.79804402,103030.0,103020.0,0.62847048]
[1746827986955,0.52804402,103030.0,103020.0,1.719967]
[1746827987156,0.36804402,103030.0,103020.0,1.71996516]
[1746827987650,0.22814402,103030.0,103020.0,1.46996516]
[1746827990054,0.22814402,103030.0,103020.0,1.46993839]
[1746827991457,0.00398,103030.0,103020.0,1.46993839]
[1746827991755,0.00398,103030.0,103020.0,1.46993062]
[1746827993659,0.00398,103030.0,103020.0,1.46992526]
[1746827995353,0.00398,103030.0,103020.0,1.45522415]
[1746827995557,0.00398,103030.0,103020.0,1.46992173]
[1746827996561,0.00398,103030.0,103020.0,1.45522415]
[1746827997356,0.00398,103030.0,103020.0,1.46992125]
[1746827997763,0.00398,103030.0,103020.0,1.45522415]
[1746827998163,0.00398,103030.0,103020.0,1.46992061]
[1746827998459,0.00398,103030.0,103020.0,1.45522415]
[1746827999161,0.00398,103030.0,103020.0,1.46992061]
[1746828000358,0.0346,103050.0,103040.0,0.1940896]
[1746828000359,0.004,103050.0,103040.0,0.1940896]
[1746828000553,0.0363,103050.0,103040.0,1.7441791]
[1746828000859,0.004,103050.0,103040.0,1.7441791]
[1746828001060,0.004,103050.0,103040.0,1.9382869]
[1746828001255,0.004,103050.0,103040.0,2.04898342]
[1746828001560,0.09876497,103060.0,103050.0,0.1940708]
[1746828001763,0.09876497,103060.0,103050.0,1.3505803]
[1746828002260,0.09876497,103060.0,103050.0,1.44762528]
[1746828002557,0.14774129,103070.0,103060.0,0.190052]
[1746828002752,0.14774129,103070.0,103060.0,1.3032415]
[1746828002950,0.18184129,103080.0,103070.0,0.1940331]
[1746828003163,0.35184129,103080.0,103070.0,0.85980608]
[1746828003362,0.31174129,103080.0,103070.0,1.3205026]
[1746828003562,0.31174129,103080.0,103070.0,1.20980608]
[1746828003763,0.31174129,103080.0,103070.0,1.30682281]
[1746828004355,0.31174129,103080.0,103070.0,1.19612629]
[1746828004558,0.31174129,103080.0,103070.0,1.30682281]
[1746828005365,0.31374129,103080.0,103070.0,1.30682281]
[1746828005860,0.31274129,103080.0,103070.0,1.32126137]
[1746828006060,0.31274129,103080.0,103070.0,1.32426137]
[1746828006565,0.31174129,103080.0,103070.0,1.32426137]
[1746828006757,0.164,103080.0,103070.0,1.32826137]
[1746828007464,0.1967,103080.0,103070.0,1.32826137]
[1746828008964,0.1967,103080.0,103070.0,1.32818757]
[1746828010359,0.164,103080.0,103070.0,1.43888409]
[1746828010560,0.164,103080.0,103070.0,1.53590009]
[1746828012570,0.164,103080.0,103070.0,1.53589923]
[1746828013673,0.164,103080.0,103070.0,1.43888323]
[1746828013873,0.164,103080.0,103070.0,1.53589923]
[1746828017773,0.164,103080.0,103070.0,1.5359189]
[1746828019773,0.03767,103090.0,103080.0,0.1940143]
[1746828019973,0.03767,103090.0,103080.0,1.36084881]
[1746828020168,0.19767,103090.0,103080.0,1.36084881]
[1746828020367,0.19767,103090.0,103080.0,1.45786554]
[1746828020963,0.1,103100.0,103090.0,0.1939955]
[1746828021164,0.26,103100.0,103090.0,1.34063001]
[1746828021374,0.26,103100.0,103090.0,1.34064337]
[1746828021577,0.26,103100.0,103090.0,1.43764128]
[1746828022471,0.26,103100.0,103090.0,1.43864128]
[1746828023173,0.26,103100.0,103090.0,1.43864308]
[1746828023773,0.26,103100.0,103090.0,1.38522785]
[1746828026569,0.26,103100.0,103090.0,1.37057122]
[1746828026777,0.26,103100.0,103090.0,1.38525807]
[1746828027768,0.26,103100.0,103090.0,1.21728026]
[1746828028173,0.26,103100.0,103090.0,1.38525807]
[1746828030777,0.26,103100.0,103090.0,1.26705807]
[1746828031082,0.26,103100.0,103090.0,1.50341807]
[1746828031284,0.321,103100.0,103090.0,1.50341807]
[1746828031582,0.321,103100.0,103090.0,1.26705807]
[1746828031886,0.321,103100.0,103090.0,1.50341807]
[1746828032082,0.321,103100.0,103090.0,1.50341264]
[1746828037287,0.321,103100.0,103090.0,1.50342177]
[1746828041087,0.321,103100.0,103090.0,1.53342177]
[1746828042681,0.321,103100.0,103090.0,1.36544396]
[1746828042890,0.321,103100.0,103090.0,1.53342177]
[1746828044088,0.321,103100.0,103090.0,1.68119556]
[1746828044482,0.321,103100.0,103090.0,1.68121347]
[1746828044689,0.321,103100.0,103090.0,2.84253347]
[1746828045691,0.321,103100.0,103090.0,2.78479702]
[1746828046281,0.321,103100.0,103090.0,2.78479972]
[1746828047595,0.321,103100.0,103090.0,2.89504108]
[1746828048182,0.321,103100.0,103090.0,2.89504645]
[1746828049889,0.321,103100.0,103090.0,2.89505782]
[1746828051695,0.321,103100.0,103090.0,2.89506865]
[1746828052095,0.321,103100.0,103090.0,3.25586865]
[1746828057288,0.321,103100.0,103090.0,3.25586829]
[1746828059288,0.321,103100.0,103090.0,3.25586809]
[1746828060892,0.321,103100.0,103090.0,3.2558683]
[1746828062502,0.04237,103110.0,103100.0,0.1939767]
[1746828062691,0.04237,103110.0,103100.0,1.2341978]
[1746828063092,0.26767,103110.0,103100.0,1.33119571]
[1746828063693,0.26867,103110.0,103100.0,1.33119571]
[1746828063889,0.26867,103110.0,103100.0,1.31645733]
[1746828064094,0.26867,103110.0,103100.0,1.33119265]
[1746828064299,0.26967,103110.0,103100.0,1.33119265]
[1746828065803,0.26967,103110.0,103100.0,1.26779265]
[1746828068705,0.26967,103110.0,103100.0,1.33279265]
[1746828069011,0.26967,103110.0,103100.0,1.26779265]
[1746828070009,0.26967,103110.0,103100.0,1.30029265]
[1746828070215,0.26967,103110.0,103100.0,1.33279265]
[1746828071007,0.26967,103110.0,103100.0,1.11230993]
[1746828071215,0.26967,103110.0,103100.0,1.33279265]
[1746828073310,0.26967,103110.0,103100.0,1.45091265]
[1746828076303,0.26967,103110.0,103100.0,1.37265875]
[1746828077403,0.2624,103110.0,103100.0,1.37265875]
[1746828078515,0.2624,103110.0,103100.0,1.37265885]
[1746828078712,0.2724,103110.0,103100.0,0.66650414]
[1746828079011,0.5924,103110.0,103100.0,0.90278414]
[1746828079212,0.5924,103110.0,103100.0,0.9738986]
[1746828080714,0.5924,103110.0,103100.0,0.9739049]
[1746828081711,0.59967,103110.0,103100.0,0.9739049]
[1746828084119,0.59967,103110.0,103100.0,0.90279044]
[1746828084615,0.59967,103110.0,103100.0,0.93489044]
[1746828085310,0.59967,103110.0,103100.0,1.0060049]
[1746828086419,0.59967,103110.0,103100.0,0.93489044]
[1746828086617,0.59967,103110.0,103100.0,0.93463151]
[1746828087817,0.59967,103110.0,103100.0,0.99101014]
[1746828088014,0.59967,103110.0,103100.0,1.00573292]
[1746828088206,0.59967,103110.0,103100.0,0.93461846]
[1746828088410,0.59967,103110.0,103100.0,1.00573292]
[1746828089018,0.59967,103110.0,103100.0,0.93461846]
[1746828091520,0.59967,103110.0,103100.0,0.93460836]
[1746828093324,0.59967,103110.0,103100.0,0.9346067]
[1746828094625,0.59967,103110.0,103100.0,0.91989568]
[1746828096724,0.59967,103110.0,103100.0,0.96569433]
[1746828096925,0.59967,103110.0,103100.0,0.99839433]
[1746828097123,0.59967,103110.0,103100.0,0.99839428]
[1746828098828,0.59967,103110.0,103100.0,0.99841135]
[1746828100914,0.86474236,103110.0,103100.0,0.62303358]
[1746828101115,0.96173036,103110.0,103100.0,0.47281358]
[1746828101319,1.32253036,103110.0,103100.0,0.11201358]
[1746828101514,0.1939955,103090.0,103080.0,0.370409]
[1746828101728,0.59510996,103090.0,103080.0,0.28931544]
[1746828101921,1.01980996,103090.0,103080.0,0.38630394]
[1746828102123,0.81900996,103090.0,103080.0,0.38630394]
[1746828102625,0.81900996,103090.0,103080.0,0.38930394]
[1746828102827,0.81900996,103090.0,103080.0,0.39130394]
[1746828105234,0.91792708,103090.0,103080.0,0.39130394]
[1746828106632,0.91792708,103090.0,103080.0,0.34280224]
[1746828106933,1.01493509,103090.0,103080.0,0.34281484]
[1746828107131,1.01493509,103090.0,103080.0,0.14880054]
[1746828107323,1.01493509,103090.0,103080.0,0.1019885]
[1746828107720,1.01493509,103090.0,103080.0,0.2960028]
[1746828108024,1.01493509,103090.0,103080.0,0.1019885]
[1746828108223,1.37573509,103090.0,103080.0,0.1019885]
[1746828108423,1.37573509,103090.0,103080.0,0.2960028]
[1746828108719,1.27681797,103090.0,103080.0,0.2960028]
[1746828108926,1.39497797,103090.0,103080.0,0.005]
[1746828109126,1.39497797,103090.0,103080.0,0.1960143]
[1746828109325,1.39497797,103090.0,103080.0,0.1970143]
[1746828109528,1.39497797,103090.0,103080.0,0.1960143]
[1746828110632,1.29796996,103090.0,103080.0,0.1960143]
[1746828110833,1.39497797,103090.0,103080.0,0.0352]
[1746828111025,1.39497797,103090.0,103080.0,0.002]
[1746828111330,1.39497797,103090.0,103080.0,0.1960143]
[1746828111534,1.39497797,103090.0,103080.0,0.2265143]
[1746828111833,1.39497797,103090.0,103080.0,0.0325]
[1746828112631,1.49389509,103090.0,103080.0,0.0325]
[1746828113032,1.42278063,103090.0,103080.0,0.2265143]
[1746828113233,0.84681262,103090.0,103080.0,0.39463608]
[1746828113534,0.58891712,103090.0,103080.0,1.00651054]
[1746828113727,0.78291262,103090.0,103080.0,1.0213188]
[1746828113933,0.60291262,103090.0,103080.0,1.0213188]
[1746828114232,0.45291262,103090.0,103080.0,1.2113188]
[1746828114436,0.25891712,103090.0,103080.0,1.14020434]
[1746828114731,0.45291262,103090.0,103080.0,1.14020434]
[1746828115427,0.25891712,103090.0,103080.0,1.2113188]
[1746828115619,0.45291262,103090.0,103080.0,1.2113188]
[1746828116024,0.25891712,103090.0,103080.0,1.2113188]
[1746828116234,0.3539955,103090.0,103080.0,1.2113188]
[1746828117536,0.3539955,103090.0,103080.0,1.14020434]
[1746828118830,0.16,103090.0,103080.0,1.06908988]
[1746828119135,0.16,103090.0,103080.0,1.14020434]
[1746828121635,0.16,103090.0,103080.0,1.14020636]
[1746828122436,0.16,103090.0,103080.0,1.21132082]
[1746828122634,0.16,103090.0,103080.0,1.0690919]
[1746828122935,0.16727,103090.0,103080.0,1.14020636]
[1746828123334,0.16727,103090.0,103080.0,1.14020963]
[1746828124134,0.16727,103090.0,103080.0,1.21132409]
[1746828124941,0.16727,103090.0,103080.0,1.19651054]
[1746828125137,0.16727,103090.0,103080.0,1.21132956]
[1746828128636,0.16727,103090.0,103080.0,1.21134865]
[1746828130542,0.16727,103090.0,103080.0,1.21135753]
[1746828132238,0.16727,103090.0,103080.0,1.57215753]
[1746828135841,0.16727,103090.0,103080.0,1.57215514]
[1746828141258,0.16727,103090.0,103080.0,1.57216453]
[1746828143351,0.16727,103090.0,103080.0,1.5721751]
[1746828144650,0.43237996,103090.0,103080.0,1.36910618]
[1746828144848,0.85607996,103090.0,103080.0,1.14860618]
[1746828145353,0.66208446,103090.0,103080.0,1.14860618]
[1746828145954,0.59097,103090.0,103080.0,1.14860618]
[1746828146651,0.59097,103090.0,103080.0,1.17870618]
[1746828147758,0.59097,103090.0,103080.0,0.81790618]
[1746828149450,0.68988712,103090.0,103080.0,0.81790618]
[1746828149850,0.88388262,103090.0,103080.0,0.78780618]
[1746828150458,0.88388262,103090.0,103080.0,0.78771966]
[1746828150663,0.68988712,103090.0,103080.0,0.78771966]
[1746828150959,0.68988712,103090.0,103080.0,0.82021966]
[1746828151160,0.72278712,103090.0,103080.0,0.82021966]
[1746828151763,0.91678262,103090.0,103080.0,0.82021966]
[1746828154164,0.91678262,103090.0,103080.0,0.82021767]
[1746828154666,0.98789708,103090.0,103080.0,0.47458337]
[1746828154858,0.98789708,103090.0,103070.0,0.20846986]
[1746828154859,0.1940143,103080.0,103070.0,0.01443856]
[1746828155058,0.194052,103060.0,103050.0,0.96733739]
[1746828155258,0.37,103060.0,103050.0,1.19017185]
[1746828155561,0.0923,103070.0,103050.0,1.19017185]
[1746828155562,0.0307,103070.0,103060.0,0.194052]
[1746828155764,0.16,103080.0,103070.0,0.1940331]
[1746828156060,0.16,103080.0,103070.0,1.04314756]
[1746828156258,0.5616,103080.0,103070.0,0.92522866]
[1746828156454,0.5936,103080.0,103070.0,0.92522866]
[1746828157068,0.7876143,103080.0,103070.0,0.92522866]
[1746828157566,0.5936,103080.0,103070.0,0.92522866]
[1746828157768,0.5936,103080.0,103070.0,0.99634312]
[1746828158161,0.60087,103080.0,103070.0,1.01109989]
[1746828158866,0.24727,103080.0,103070.0,1.43221435]
[1746828159064,0.16727,103080.0,103070.0,1.49761435]
[1746828160171,0.16727,103080.0,103070.0,1.42649989]
[1746828160370,0.7326843,103080.0,103070.0,0.62895233]
[1746828160561,0.83529876,103080.0,103070.0,0.62895233]
[1746828160864,0.83529876,103080.0,103070.0,0.22019556]
[1746828161069,0.7641843,103080.0,103070.0,0.22019556]
[1746828161268,0.83529876,103080.0,103070.0,0.22019556]
[1746828161663,0.83529876,103080.0,103070.0,0.41422866]
[1746828161868,0.7641843,103080.0,103070.0,0.41422866]
[1746828162669,0.57017,103080.0,103070.0,0.88351943]
[1746828162863,0.23017,103080.0,103070.0,0.97461943]
[1746828163563,0.23017,103080.0,103070.0,1.00461943]
[1746828163769,0.26618712,103080.0,103070.0,1.00461943]
[1746828165260,0.26618712,103080.0,103070.0,1.27461943]
[1746828165463,0.26618712,103080.0,103070.0,1.00461943]
[1746828165768,0.26618712,103080.0,103070.0,1.01921681]
[1746828166860,0.26618712,103080.0,103070.0,1.31424219]
[1746828167264,0.16727,103080.0,103070.0,1.31424219]
[1746828173475,0.16727,103080.0,103070.0,0.95344219]
[1746828173681,0.16727,103080.0,103070.0,1.67504219]
[1746828173873,0.0643,103100.0,103070.0,1.67504219]
[1746828173874,0.0643,103100.0,103090.0,0.1939955]
[1746828174079,0.0643,103100.0,103090.0,1.60735165]
[1746828174080,0.09891712,103100.0,103090.0,1.60735165]
[1746828174275,0.09891712,103100.0,103090.0,1.70465165]
[1746828174578,0.09891712,103100.0,103090.0,1.80166838]
[1746828175182,0.25991712,103100.0,103090.0,1.80166838]
[1746828175976,0.25991712,103100.0,103090.0,1.80167646]
[1746828176378,0.58991712,103100.0,103090.0,1.36318569]
[1746828176583,0.65191712,103100.0,103090.0,1.36318569]
[1746828176779,0.65291712,103100.0,103090.0,1.47167646]
[1746828177074,0.85646747,103100.0,103090.0,0.81800569]
[1746828177272,0.553,103100.0,103090.0,0.81800569]
[1746828177467,0.7469767,103100.0,103090.0,0.92749646]
[1746828177673,0.7459767,103100.0,103090.0,0.92849646]
[1746828177985,0.7459767,103100.0,103090.0,0.82000664]
[1746828178276,0.552,103100.0,103090.0,0.82000664]
[1746828178579,0.232,103100.0,103090.0,0.92849741]
[1746828178765,0.232,103100.0,103090.0,0.96079741]
[1746828179679,0.232,103100.0,103090.0,0.96079332]
[1746828180472,0.232,103100.0,103090.0,0.85230255]
[1746828180682,0.85446747,103100.0,103090.0,0.23320705]
[1746828180979,1.20146347,103100.0,103090.0,0.30804255]
[1746828181177,0.95146347,103100.0,103090.0,0.30804255]
[1746828181977,0.95146347,103100.0,103090.0,0.29301223]
[1746828182880,1.07054347,103100.0,103090.0,0.30696128]
[1746828183074,1.07154347,103100.0,103090.0,0.30696128]
[1746828184079,1.07154347,103100.0,103090.0,0.30596128]
[1746828184378,1.53226059,103100.0,103090.0,0.30596128]
[1746828184577,1.53226059,103100.0,103090.0,0.29101223]
[1746828184775,0.1939955,103090.0,103080.0,0.3608]
[1746828185082,1.48450238,103090.0,103080.0,0.30596328]
[1746828185285,1.12370238,103090.0,103080.0,0.30596328]
[1746828186080,1.12370238,103090.0,103080.0,0.30696328]
[1746828186468,0.5787,103090.0,103080.0,0.77625405]
[1746828186779,0.2587,103090.0,103080.0,1.00625405]
[1746828186980,0.2256,103090.0,103080.0,1.10195405]
[1746828187878,0.32451712,103090.0,103080.0,1.10195405]
[1746828188083,0.25891712,103090.0,103080.0,1.22127405]
[1746828188284,0.25891712,103090.0,103080.0,1.22127272]
[1746828190181,0.25891712,103090.0,103080.0,1.2212723]
[1746828190378,0.45291262,103090.0,103080.0,0.99346153]
[1746828190581,0.70161712,103090.0,103080.0,1.00190153]
[1746828190775,0.70161712,103090.0,103080.0,1.1103923]
[1746828190976,0.6027,103090.0,103080.0,1.1103923]
[1746828192784,0.7966955,103090.0,103080.0,1.1103923]
[1746828192976,0.93608627,103090.0,103080.0,0.26324723]
[1746828193176,0.6336,103090.0,103080.0,0.9265523]
[1746828193384,0.8275955,103090.0,103080.0,0.9916523]
[1746828193580,0.4975955,103090.0,103080.0,0.9916523]
[1746828193781,0.4475955,103090.0,103080.0,0.99166906]
[1746828193983,0.4475955,103090.0,103080.0,0.88317829]
[1746828194476,0.4475955,103090.0,103080.0,0.85017829]
[1746828194878,0.2536,103090.0,103080.0,0.85017829]
[1746828195486,0.35251712,103090.0,103080.0,0.85017829]
[1746828196989,0.54651262,103090.0,103080.0,0.85017829]
[1746828197192,0.61651262,103090.0,103080.0,0.85017829]
[1746828197385,0.91651262,103090.0,103080.0,0.81807829]
[1746828197688,1.38580339,103090.0,103080.0,0.13616608]
[1746828197893,1.38580339,103090.0,103080.0,0.21098038]
[1746828198087,1.38580339,103090.0,103080.0,0.01696608]
[1746828198288,1.38580339,103090.0,103080.0,0.002]
[1746828198590,1.38580339,103090.0,103080.0,0.1960143]
[1746828199984,1.38580339,103090.0,103080.0,0.002]
[1746828200702,0.1940331,103070.0,103060.0,0.224052]
[1746828200891,0.98332387,103070.0,103060.0,0.2390159]
[1746828201089,0.98332387,103070.0,103060.0,0.33602422]
[1746828201090,1.07962387,103070.0,103060.0,0.33602422]
[1746828201279,1.23962387,103070.0,103060.0,0.33602422]
[1746828201483,1.23962387,103070.0,103060.0,0.32105932]
[1746828202092,1.23962387,103070.0,103060.0,0.32405932]
[1746828203494,1.23962387,103070.0,103060.0,0.32805932]
[1746828203996,0.7389331,103070.0,103060.0,0.32805932]
[1746828204195,0.7389331,103070.0,103060.0,0.35845932]
[1746828204391,0.7389331,103070.0,103060.0,0.35645932]
[1746828205096,0.7389331,103070.0,103060.0,0.35345932]
[1746828205296,0.7389331,103070.0,103060.0,0.35545932]
[1746828209000,0.7389331,103070.0,103060.0,0.71625932]
[1746828209201,0.7389331,103070.0,103060.0,0.73120218]
[1746828211992,0.6740331,103070.0,103060.0,0.73120218]
[1746828212189,0.6740331,103070.0,103060.0,0.83969295]
[1746828212796,0.6740331,103070.0,103060.0,0.73120218]
[1746828212994,0.7044331,103070.0,103060.0,0.73120218]
[1746828215302,0.7367331,103070.0,103060.0,0.73120218]
[1746828219101,0.7044331,103070.0,103060.0,0.73120589]
[1746828221100,0.7361331,103070.0,103060.0,0.73120589]
[1746828222702,0.7361331,103070.0,103060.0,0.73122558]
[1746828223103,0.7361331,103070.0,103060.0,0.37042558]
[1746828223303,0.7361331,103070.0,103060.0,0.73122558]
[1746828228108,0.7361331,103070.0,103060.0,0.73125212]
[1746828228407,0.83470256,103070.0,103060.0,0.73125212]
[1746828230610,0.83470256,103070.0,103060.0,0.7312566]
[1746828232011,0.83470256,103070.0,103060.0,0.73125775]
[1746828232716,0.83470256,103070.0,103060.0,0.73125845]
[1746828233710,0.83470256,103070.0,103060.0,0.73125928]
[1746828233910,0.7361331,103070.0,103060.0,0.73125928]
[1746828237419,0.7361331,103070.0,103060.0,0.73125619]
[1746828238922,0.84462387,103070.0,103060.0,0.50680419]
[1746828239220,0.84462387,103070.0,103060.0,0.34005619]
[1746828239424,0.85189387,103070.0,103060.0,0.34005619]
[1746828239723,1.21269387,103070.0,103060.0,0.34005619]
[1746828240423,0.85189387,103070.0,103060.0,0.34005619]
[1746828240627,1.21269387,103070.0,103060.0,0.34005619]
[1746828240830,0.85189387,103070.0,103060.0,0.34005619]
[1746828241129,0.97468863,103070.0,103060.0,0.34005619]
[1746828241425,1.33548863,103070.0,103060.0,0.34005619]
[1746828242224,1.22699786,103070.0,103060.0,0.34005619]
[1746828242415,1.22699786,103070.0,103060.0,0.37325619]
[1746828242829,0.86619786,103070.0,103060.0,0.73405619]
[1746828243830,0.86619786,103070.0,103060.0,0.73405906]
[1746828244826,0.61006476,103070.0,103060.0,0.84254983]
[1746828245032,0.61006476,103070.0,103060.0,0.85254983]
[1746828245331,0.40006476,103070.0,103060.0,0.85254983]
[1746828245719,0.29006476,103070.0,103060.0,0.85254983]
[1746828246432,0.29006476,103070.0,103060.0,0.97118983]
[1746828247832,0.29006476,103070.0,103060.0,1.23118983]
[1746828248829,0.26619125,103070.0,103060.0,1.23118983]
[1746828249220,0.26619125,103070.0,103060.0,1.42821783]
[1746828249919,0.26619125,103070.0,103060.0,1.32821783]
[1746828252233,0.16727,103070.0,103060.0,1.32821783]
[1746828252435,0.16727,103070.0,103060.0,1.32809747]
[1746828252733,0.16727,103070.0,103060.0,1.3280969]
[1746828254929,0.52727,103070.0,103060.0,0.9710689]
[1746828255129,0.52727,103070.0,103060.0,0.96106155]
[1746828255326,0.52727,103070.0,103060.0,0.85257078]
[1746828255532,0.52727,103070.0,103060.0,0.96106155]
[1746828255831,0.52727,103070.0,103060.0,0.96106129]
[1746828256230,0.16727,103070.0,103060.0,0.96106129]
[1746828256423,0.33727,103070.0,103060.0,0.96106129]
[1746828260133,0.33727,103070.0,103060.0,0.84242129]
[1746828260436,0.33727,103070.0,103060.0,0.96078129]
[1746828260629,0.36777,103070.0,103060.0,0.96078129]
[1746828263337,0.36777,103070.0,103060.0,0.9607791]
[1746828263538,0.39817,103070.0,103060.0,0.9607791]
[1746828265338,0.36777,103070.0,103060.0,0.9607791]
[1746828267739,0.36777,103070.0,103060.0,0.96078467]
[1746828268538,0.39987,103070.0,103060.0,0.96078467]
[1746828274746,0.39987,103070.0,103060.0,0.59998467]
[1746828274931,0.39987,103070.0,103060.0,1.32158467]
[1746828275742,0.39987,103070.0,103060.0,1.35545084]
[1746828276645,0.39987,103070.0,103060.0,1.35547762]
[1746828278543,0.39987,103070.0,103060.0,1.35548316]
[1746828280251,0.39987,103070.0,103060.0,1.35548352]
[1746828283346,0.39987,103070.0,103060.0,1.35535358]